[Event "105th British-ch 2018"]
[Site "Hull"]
[Date "2018.08.01"]
[Round "5"]
[White "Price, Gwilym T"]
[Black "Pritchett, Craig W"]
[Result "0-1"]
[ECO "B41"]
[WhiteElo "2085"]
[BlackElo "2274"]
[Annotator "NA"]
[PlyCount "90"]
[EventDate "2018.07.28"]
[EventType "swiss"]
[EventCountry "GBR"]
[SourceTitle "playchess.com"]
[Source "ChessBase"]
[SourceQuality "1"]
[TimeControl "40/5400+30:1800+30"]

1. e4 {[%emt 0:00:00]} c5 {[%emt 0:00:00]} 2. Nf3 {[%emt 0:00:00]} e6 {[%emt 0:00:00]} 3. d4 {[%emt 0:00:00]} cxd4 {[%emt 0:00:01]} 4. Nxd4 {[%emt 0:00:00]} a6 {[%emt 0:00:37]} 5. c4 {[%emt 0:00:13]} Nf6 {[%emt 0:00:28]} 6. Nc3 {[%emt 0:00:10]} Qc7 {[%emt 0:00:20]} 7. Be2 {[%emt 0:00:43]} b6 {[%emt 0:04:15]} 8. O-O {[%emt 0:00:55]} Bb7 {[%emt 0:00:16]} 9. Qd3 {[%emt 0:00:08]} d6 {[%emt 0:02:11]} 10. f4 {[%emt 0:01:14]} Nbd7 {[%emt 0:00:23]} 11. b4 {[%emt 0:00:17]} Rc8 {[%emt 0:01:49]} 12. Bb2 {[%emt 0:03:27]} Be7 {[%emt 0:02:19]} 13. Rac1 {[%emt 0:00:49]} O-O {[%emt 0:01:04]} 14. a3 {[%emt 0:00:20]} Qb8 {[%emt 0:04:01]} 15. g4 {[%emt 0:17:42]} Qa8 {[%emt 0:09:28]} 16. Bf3 {[%emt 0:05:58]} g5 {[%emt 0:09:11]} 17. Nd5 {[%emt 0:03:08]} Bd8 {[%emt 0:13:16]} 18. fxg5 {[%emt 0:12:54]} Ne5 {[%emt 0:13:51]} 19. Nxf6+ {[%emt 0:26:52]} Bxf6 {[%emt 0:00:35]} 20. Qe3 {[%emt 0:00:24]} Bg7 {[%emt 0:04:18]} 21. Qe2 {[%emt 0:01:50]} Nxf3+ {[%emt 0:02:17]} 22. Rxf3 {[%emt 0:00:50]} Bxe4 {[%emt 0:00:43]} 23. Rh3 {[%emt 0:03:56]} d5 {[%emt 0:02:00]} 24. c5 {[%emt 0:00:47]} bxc5 {[%emt 0:05:40]} 25. bxc5 {[%emt 0:01:55]} Qa7 {[%emt 0:04:59]} 26. Nb3 {[%emt 0:01:41]} e5 {[%emt 0:01:30]} 27. Re3 {[%emt 0:04:17]} a5 {[%emt 0:07:36]} 28. Nd2 {[%emt 0:02:34]} Rxc5 {[%emt 0:01:37]} 29. Nxe4 {[%emt 0:01:06]} Rxc1+ {[%emt 0:04:07]} 30. Bxc1 {[%emt 0:00:02]} dxe4 {[%emt 0:00:08]} 31. Kg2 {[%emt 0:01:05]} Rc8 {[%emt 0:02:49]} 32. Bb2 {[%emt 0:01:43]} Qb7 {[%emt 0:00:59]} 33. Rc3 {[%emt 0:02:42]} Rxc3 {[%emt 0:00:47]} 34. Bxc3 {[%emt 0:00:11]} e3+ {[%emt 0:00:57]} 35. Kg3 {[%emt 0:00:59]} Qc7 {[%emt 0:00:36]} 36. Be1 {[%emt 0:01:06]} Qc5 {[%emt 0:01:11]} 37. Bxa5 {[%emt 0:01:04]} Qxa5 {[%emt 0:00:10]} 38. Qxe3 {[%emt 0:00:07]} Bf8 {[%emt 0:00:39]} 39. a4 {[%emt 0:01:15]} Bb4 {[%emt 0:00:26]} 40. Qe4 {[%emt 0:01:35]} Be1+ {[%emt 0:00:48]} 41. Kg2 {[%emt 0:30:12]} Qd2+ {[%emt 0:31:01]} 42. Kh3 {[%emt 0:00:57]} Qc3+ {[%emt 0:00:00]} 43. Kg2 {[%emt 0:00:00]} Bh4 {[%emt 0:00:00]} 44. Qa8+ {[%emt 0:00:00]} Kg7 {[%emt 0:00:00]} 45. Qd8 {[%emt 0:00:00]} e4 {[%emt 0:00:00]} 0-1

[Event "105th British-ch 2018"]
[Site "Hull"]
[Date "2018.08.01"]
[Round "5"]
[White "Jackson, Sheila"]
[Black "Verma, Aditya"]
[Result "1/2-1/2"]
[ECO "D45"]
[WhiteElo "2072"]
[BlackElo "2084"]
[Annotator "NA"]
[PlyCount "37"]
[EventDate "2018.07.28"]
[EventType "swiss"]
[EventCountry "GBR"]
[SourceTitle "playchess.com"]
[Source "ChessBase"]
[SourceQuality "1"]
[TimeControl "40/5400+30:1800+30"]

1. d4 {[%emt 0:00:00]} d5 {[%emt 0:00:00]} 2. c4 {[%emt 0:00:00]} c6 {[%emt 0:00:00]} 3. Nf3 {[%emt 0:00:00]} Nf6 {[%emt 0:00:00]} 4. Qc2 {[%emt 0:00:18]} dxc4 {[%emt 0:00:00]} 5. e3 {[%emt 0:00:08]} e6 {[%emt 0:07:58]} 6. Bxc4 {[%emt 0:04:22]} Nbd7 {[%emt 0:00:05]} 7. O-O {[%emt 0:01:07]} Be7 {[%emt 0:00:03]} 8. Nc3 {[%emt 0:04:09]} O-O {[%emt 0:00:07]} 9. a4 {[%emt 0:04:29]} c5 {[%emt 0:01:01]} 10. Rd1 {[%emt 0:10:23]} cxd4 {[%emt 0:01:18]} 11. exd4 {[%emt 0:05:10]} Nb6 {[%emt 0:00:21]} 12. Bd3 {[%emt 0:01:41]} h6 {[%emt 0:01:05]} 13. Ne5 {[%emt 0:08:41]} Nbd5 {[%emt 0:01:45]} 14. Qe2 {[%emt 0:04:08]} a6 {[%emt 0:02:00]} 15. Nxd5 Nxd5 16. Be4 {[%emt 0:07:01]} Nf6 {[%emt 0:15:43]} 17. Bf3 {[%emt 0:04:32]} Nd5 {[%emt 0:10:22]} 18. Bd2 {[%emt 0:01:37]} Bd7 {[%emt 0:03:03]} 19. b3 {[%emt 0:10:33]} 1/2-1/2

[Event "105th British-ch 2018"]
[Site "Hull"]
[Date "2018.08.01"]
[Round "5"]
[White "Thurlow, Kevin J"]
[Black "Pollack, Oscar"]
[Result "0-1"]
[ECO "E61"]
[WhiteElo "2030"]
[BlackElo "2064"]
[Annotator "NA"]
[PlyCount "66"]
[EventDate "2018.07.28"]
[EventType "swiss"]
[EventCountry "GBR"]
[SourceTitle "playchess.com"]
[Source "ChessBase"]
[SourceQuality "1"]
[TimeControl "40/5400+30:1800+30"]

1. c4 {[%emt 0:00:00]} g6 {[%emt 0:00:00]} 2. d4 {[%emt 0:00:00]} Nf6 {[%emt 0:00:00]} 3. g3 {[%emt 0:00:25]} Bg7 {[%emt 0:00:00]} 4. Bg2 {[%emt 0:00:06]} O-O {[%emt 0:00:00]} 5. Nc3 {[%emt 0:00:10]} d6 {[%emt 0:00:04]} 6. e3 {[%emt 0:00:10]} e5 {[%emt 0:00:23]} 7. Nge2 {[%emt 0:00:09]} c6 {[%emt 0:00:23]} 8. b3 {[%emt 0:01:18]} Re8 {[%emt 0:01:01]} 9. dxe5 {[%emt 0:03:08]} dxe5 {[%emt 0:00:38]} 10. O-O {[%emt 0:00:29]} Nbd7 {[%emt 0:01:40]} 11. Bb2 {[%emt 0:03:16]} Qc7 {[%emt 0:01:24]} 12. Qc2 {[%emt 0:02:02]} Nf8 {[%emt 0:02:46]} 13. Rad1 {[%emt 0:02:11]} Be6 {[%emt 0:02:45]} 14. Rd2 {[%emt 0:04:01]} Rad8 {[%emt 0:00:58]} 15. Rfd1 {[%emt 0:00:10]} h5 {[%emt 0:01:11]} 16. Na4 {[%emt 0:03:59]} Bf5 {[%emt 0:03:39]} 17. Qc1 {[%emt 0:03:40]} Rxd2 {[%emt 0:02:17]} 18. Rxd2 {[%emt 0:00:50]} Ne6 {[%emt 0:05:59]} 19. Ba3 {[%emt 0:13:44]} Ng5 {[%emt 0:13:20]} 20. Nec3 {[%emt 0:17:58]} e4 {[%emt 0:03:32]} 21. Ne2 {[%emt 0:07:53]} h4 {[%emt 0:04:14]} 22. Nd4 {[%emt 0:02:52]} hxg3 {[%emt 0:02:21]} 23. hxg3 {[%emt 0:00:17]} Bg4 {[%emt 0:01:17]} 24. Qf1 {[%emt 0:09:14]} Qc8 {[%emt 0:02:23]} 25. Bd6 {[%emt 0:04:00]} Nh5 {[%emt 0:06:37]} 26. Bf4 {[%emt 0:05:16]} Nh3+ {[%emt 0:02:51]} 27. Kh2 {[%emt 0:01:44]} N3xf4 {[%emt 0:00:14]} 28. gxf4 {[%emt 0:01:19]} Qd8 {[%emt 0:01:31]} 29. Nf3 {[%emt 0:00:34]} Qf6 {[%emt 0:00:38]} 30. Ne5 {[%emt 0:01:37]} Qh4+ {[%emt 0:00:53]} 31. Kg1 {[%emt 0:00:54]} Bxe5 {[%emt 0:01:41]} 32. fxe5 {[%emt 0:00:13]} Rxe5 {[%emt 0:00:08]} 33. Nc3 {[%emt 0:00:13]} Bf3 {[%emt 0:00:42]} 0-1

[Event "105th British-ch 2018"]
[Site "Hull"]
[Date "2018.08.01"]
[Round "5"]
[White "Miller, Dominic"]
[Black "Roberson, Peter T"]
[Result "0-1"]
[ECO "C11"]
[WhiteElo "2017"]
[BlackElo "2401"]
[Annotator "NA"]
[PlyCount "52"]
[EventDate "2018.07.28"]
[EventType "swiss"]
[EventCountry "GBR"]
[SourceTitle "playchess.com"]
[Source "ChessBase"]
[SourceQuality "1"]
[TimeControl "40/5400+30:1800+30"]

1. e4 {[%emt 0:00:00]} e6 {[%emt 0:00:00]} 2. d4 {[%emt 0:00:00]} d5 {[%emt 0:00:00]} 3. Nc3 {[%emt 0:00:12]} Nf6 {[%emt 0:00:00]} 4. e5 {[%emt 0:00:04]} Nfd7 {[%emt 0:00:00]} 5. f4 {[%emt 0:00:05]} c5 {[%emt 0:00:00]} 6. Nf3 {[%emt 0:00:03]} Nc6 {[%emt 0:00:00]} 7. Be3 {[%emt 0:00:06]} a6 {[%emt 0:00:00]} 8. Qd2 {[%emt 0:00:24]} Be7 {[%emt 0:00:01]} 9. Be2 {[%emt 0:00:40]} b5 {[%emt 0:01:00]} 10. a3 {[%emt 0:00:14]} O-O {[%emt 0:00:32]} 11. O-O {[%emt 0:01:46]} Bb7 {[%emt 0:03:44]} 12. Nd1 {[%emt 0:03:56]} Qb6 {[%emt 0:05:38]} 13. c3 {[%emt 0:03:36]} a5 {[%emt 0:00:11]} 14. Bd3 {[%emt 0:03:32]} f5 {[%emt 0:21:59]} 15. Nf2 {[%emt 0:11:24]} b4 {[%emt 0:03:26]} 16. axb4 {[%emt 0:03:45]} axb4 {[%emt 0:02:49]} 17. Rxa8 {[%emt 0:01:00]} Rxa8 {[%emt 0:00:47]} 18. g4 {[%emt 0:00:07]} g6 {[%emt 0:05:19]} 19. gxf5 {[%emt 0:02:00]} exf5 {[%emt 0:02:53]} 20. Nh3 {[%emt 0:02:45]} Nf8 {[%emt 0:11:31]} 21. Kh1 {[%emt 0:12:34]} c4 {[%emt 0:17:48]} 22. Be2 {[%emt 0:06:16]} Ra2 {[%emt 0:01:21]} 23. Qe1 {[%emt 0:02:03]} Rxb2 {[%emt 0:02:03]} 24. Bxc4 {[%emt 0:02:37]} dxc4 {[%emt 0:01:43]} 25. d5 {[%emt 0:00:04]} Qb5 {[%emt 0:03:54]} 26. dxc6 {[%emt 0:02:00]} Bxc6 {[%emt 0:00:02]} 0-1

[Event "105th British-ch 2018"]
[Site "Hull"]
[Date "2018.08.02"]
[Round "6"]
[White "Houska, Jovanka"]
[Black "Webb, Laurence"]
[Result "1/2-1/2"]
[ECO "E01"]
[WhiteElo "2406"]
[BlackElo "2306"]
[Annotator "ChessBase"]
[PlyCount "89"]
[EventDate "2018.07.28"]
[EventType "swiss"]
[EventCountry "GBR"]
[SourceTitle "playchess.com"]
[Source "ChessBase"]
[SourceQuality "1"]
[TimeControl "40/5400+30:1800+30"]

1. Nf3 {[%emt 0:00:00]} d5 {[%emt 0:01:10]} 2. c4 {[%emt 0:00:11]} e6 {[%emt 0:00:11]} 3. g3 {[%emt 0:00:36]} Nf6 {[%emt 0:00:51]} 4. Bg2 {[%emt 0:00:18]} c6 {[%emt 0:01:23]} 5. b3 {[%emt 0:01:58]} Nbd7 {[%emt 0:01:40]} 6. Bb2 {[%emt 0:01:11]} Bd6 {[%emt 0:04:14]} 7. d4 {[%emt 0:01:24]} Ne4 {[%emt 0:02:48]} 8. O-O {[%emt 0:01:11]} O-O {[%emt 0:01:20]} 9. Nfd2 {[%emt 0:03:20]} f5 {[%emt 0:05:59]} 10. e3 {[%emt 0:05:40]} Ndf6 {[%emt 0:03:59]} 11. Nc3 {[%emt 0:19:38]} Qe7 12. Ne2 {[%emt 0:00:00]} Bd7 {[%emt 0:12:03]} 13. Nf3 {[%emt 0:04:56]} Be8 {[%emt 0:06:58]} 14. Ne5 {[%emt 0:03:50]} Nd7 {[%emt 0:03:26]} 15. f3 {[%emt 0:03:09]} Nef6 {[%emt 0:01:08]} 16. Nf4 {[%emt 0:01:39]} a5 {[%emt 0:10:18]} 17. Qc2 {[%emt 0:03:29]} g5 {[%emt 0:01:52]} 18. Nfd3 {[%emt 0:01:09]} Bg6 {[%emt 0:02:56]} 19. Nxg6 {[%emt 0:03:21]} hxg6 {[%emt 0:00:02]} 20. Nf2 {[%emt 0:00:28]} e5 {[%emt 0:14:22]} 21. e4 {[%emt 0:02:06]} dxe4 {[%emt 0:00:32]} 22. fxe4 {[%emt 0:00:04]} f4 {[%emt 0:00:41]} 23. c5 {[%emt 0:02:08]} Bc7 {[%emt 0:00:45]} 24. Nd3 {[%emt 0:00:03]} Ng4 {[%emt 0:04:21]} 25. Rf3 {[%emt 0:13:17]} exd4 {[%emt 0:04:45]} 26. gxf4 {[%emt 0:00:09]} gxf4 {[%emt 0:02:16]} 27. Qc4+ {[%emt 0:11:10]} Qf7 {[%emt 0:01:23]} 28. Qxd4 {[%emt 0:01:33]} Be5 {[%emt 0:02:17]} 29. Nxe5 {[%emt 0:00:06]} Ndxe5 {[%emt 0:01:12]} 30. Raf1 {[%emt 0:03:31]} g5 {[%emt 0:03:21]} 31. Kh1 {[%emt 0:04:37]} Rad8 {[%emt 0:02:14]} 32. Qc3 {[%emt 0:00:06]} Ng6 {[%emt 0:01:52]} 33. Bh3 {[%emt 0:03:00]} N4e5 {[%emt 0:00:43]} 34. Bf5 {[%emt 0:00:32]} Rfe8 {[%emt 0:01:06]} 35. Rg1 {[%emt 0:01:25]} Qf6 {[%emt 0:01:26]} 36. Bxg6 {[%emt 0:01:40]} Qxg6 {[%emt 0:00:19]} 37. Rxf4 {[%emt 0:00:02]} Rd3 {[%emt 0:01:09]} 38. Qc2 {[%emt 0:00:46]} Rh3 {[%emt 0:01:08]} 39. Rf5 {[%emt 0:01:44]} Nf7 {[%emt 0:00:42]} 40. Qc4 {[%emt 0:00:49]} Rh5 {[%emt 0:00:27]} 41. Rgf1 {[%emt 0:30:48]} Re7 {[%emt 0:03:30]} 42. Qd4 {[%emt 0:00:00]} Rh4 {[%emt 0:11:47]} 43. Qd8+ {[%emt 0:00:00]} Nxd8 {[%emt 0:00:28]} 44. Rf8+ {[%emt 0:00:00]} Kh7 {[%emt 0:00:07]} 45. Rh8# {[%emt 0:00:04]} 1/2-1/2

[Event "105th British-ch 2018"]
[Site "Hull"]
[Date "2018.08.02"]
[Round "6"]
[White "Eggleston, David J"]
[Black "Emms, John M"]
[Result "1-0"]
[ECO "C54"]
[WhiteElo "2397"]
[BlackElo "2488"]
[Annotator "ChessBase"]
[PlyCount "103"]
[EventDate "2018.07.28"]
[EventType "swiss"]
[EventCountry "GBR"]
[SourceTitle "playchess.com"]
[Source "ChessBase"]
[SourceQuality "1"]
[TimeControl "40/5400+30:1800+30"]

1. e4 {[%emt 0:01:14]} e5 {[%emt 0:00:00]} 2. Nf3 {[%emt 0:01:01]} Nc6 {[%emt 0:00:00]} 3. Bc4 {[%emt 0:01:27]} Bc5 {[%emt 0:00:00]} 4. c3 {[%emt 0:00:07]} Nf6 {[%emt 0:00:06]} 5. d3 {[%emt 0:00:05]} d6 {[%emt 0:00:21]} 6. a4 {[%emt 0:05:37]} a5 {[%emt 0:02:29]} 7. O-O {[%emt 0:03:25]} O-O {[%emt 0:00:58]} 8. Re1 {[%emt 0:00:52]} h6 {[%emt 0:05:08]} 9. h3 {[%emt 0:05:26]} Be6 {[%emt 0:10:23]} 10. Bxe6 {[%emt 0:03:48]} fxe6 {[%emt 0:00:10]} 11. d4 {[%emt 0:02:09]} Bb6 {[%emt 0:10:41]} 12. Be3 {[%emt 0:08:40]} d5 {[%emt 0:22:51]} 13. exd5 {[%emt 0:03:00]} Nxd5 {[%emt 0:09:08]} 14. Nbd2 {[%emt 0:01:22]} exd4 {[%emt 0:05:44]} 15. cxd4 {[%emt 0:00:13]} e5 {[%emt 0:04:48]} 16. Nc4 {[%emt 0:14:16]} Nxe3 {[%emt 0:03:07]} 17. fxe3 {[%emt 0:00:24]} exd4 {[%emt 0:00:17]} 18. Nxb6 {[%emt 0:00:31]} cxb6 {[%emt 0:00:06]} 19. exd4 {[%emt 0:05:34]} Qd5 {[%emt 0:00:52]} 20. Ra3 {[%emt 0:00:40]} Rad8 {[%emt 0:01:34]} 21. Rd3 {[%emt 0:05:58]} Rf4 {[%emt 0:02:32]} 22. Qd2 {[%emt 0:01:07]} Rdf8 {[%emt 0:01:38]} 23. Ree3 {[%emt 0:01:49]} Kh8 {[%emt 0:03:11]} 24. b3 {[%emt 0:01:18]} R4f6 {[%emt 0:03:44]} 25. Qe1 {[%emt 0:02:45]} Kg8 {[%emt 0:01:02]} 26. Kh1 {[%emt 0:04:18]} Rf4 {[%emt 0:00:32]} 27. Qg3 {[%emt 0:07:56]} Kh7 {[%emt 0:00:45]} 28. Re2 {[%emt 0:02:44]} R8f7 {[%emt 0:04:52]} 29. Re1 {[%emt 0:03:58]} R4f6 {[%emt 0:01:30]} 30. Re8 {[%emt 0:02:50]} Rf4 {[%emt 0:02:15]} 31. Ne5 {[%emt 0:03:06]} Nxe5 {[%emt 0:01:30]} 32. dxe5 {[%emt 0:00:26]} Qc5 {[%emt 0:00:24]} 33. Qe3 {[%emt 0:00:28]} Qxe3 {[%emt 0:01:54]} 34. Rxe3 {[%emt 0:00:05]} Rf8 {[%emt 0:00:11]} 35. Re6 {[%emt 0:00:19]} Rb4 {[%emt 0:00:23]} 36. Re7 {[%emt 0:00:34]} b5 {[%emt 0:00:20]} 37. axb5 {[%emt 0:04:27]} Rxb5 {[%emt 0:00:06]} 38. Rg3 {[%emt 0:01:18]} Rg8 {[%emt 0:00:12]} 39. Re3 {[%emt 0:01:16]} Rf8 {[%emt 0:01:04]} 40. e6 {[%emt 0:00:12]} Rff5 {[%emt 0:01:05]} 41. Rf7 {[%emt 0:30:59]} Rbe5 {[%emt 0:08:12]} 42. Rd3 {[%emt 0:00:00]} Rg5 {[%emt 0:01:58]} 43. Rd6 {[%emt 0:00:00]} Re1+ {[%emt 0:01:58]} 44. Kh2 {[%emt 0:00:00]} Re2 {[%emt 0:00:29]} 45. Kg1 {[%emt 0:00:00]} Rgxg2+ {[%emt 0:07:57]} 46. Kf1 {[%emt 0:00:00]} Ra2 {[%emt 0:05:36]} 47. Rdd7 {[%emt 0:00:00]} Rg6 {[%emt 0:04:07]} 48. e7 {[%emt 0:00:00]} Ra1+ {[%emt 0:03:17]} 49. Kf2 {[%emt 0:00:00]} Ra2+ {[%emt 0:01:30]} 50. Kf3 {[%emt 0:00:00]} Rgg2 {[%emt 0:00:14]} 51. Rxg7+ {[%emt 0:00:00]} Rxg7 {[%emt 0:00:09]} 52. e8=Q {[%emt 0:00:00]} 1-0

[Event "105th British-ch 2018"]
[Site "Hull"]
[Date "2018.08.02"]
[Round "6"]
[White "Zakarian, David"]
[Black "Arkell, Keith C"]
[Result "0-1"]
[ECO "C00"]
[WhiteElo "2354"]
[BlackElo "2406"]
[Annotator "ChessBase"]
[PlyCount "118"]
[EventDate "2018.07.28"]
[EventType "swiss"]
[EventCountry "GBR"]
[SourceTitle "playchess.com"]
[Source "ChessBase"]
[SourceQuality "1"]
[TimeControl "40/5400+30:1800+30"]

1. e4 {[%emt 0:00:59]} e6 {[%emt 0:00:00]} 2. Nf3 {[%emt 0:01:56]} d5 {[%emt 0:00:00]} 3. e5 {[%emt 0:00:04]} c5 {[%emt 0:00:00]} 4. b4 {[%emt 0:00:04]} cxb4 {[%emt 0:00:03]} 5. a3 {[%emt 0:00:04]} bxa3 {[%emt 0:01:16]} 6. c3 {[%emt 0:00:05]} Nc6 {[%emt 0:00:14]} 7. d4 {[%emt 0:00:04]} Nh6 {[%emt 0:03:44]} 8. Bd3 {[%emt 0:00:30]} Nf5 {[%emt 0:00:08]} 9. O-O {[%emt 0:00:07]} h5 {[%emt 0:02:11]} 10. Nxa3 {[%emt 0:02:29]} Be7 {[%emt 0:00:47]} 11. Re1 {[%emt 0:01:49]} a6 {[%emt 0:01:37]} 12. Bb2 {[%emt 0:12:08]} g6 {[%emt 0:02:34]} 13. Nc2 {[%emt 0:24:34]} Na5 {[%emt 0:04:58]} 14. Ne3 {[%emt 0:00:37]} b5 {[%emt 0:01:02]} 15. Bxf5 {[%emt 0:04:07]} gxf5 {[%emt 0:00:44]} 16. Nd2 {[%emt 0:03:03]} Bb7 {[%emt 0:09:45]} 17. Qf3 {[%emt 0:08:45]} Rb8 {[%emt 0:06:25]} 18. Qg3 {[%emt 0:04:39]} Kf8 {[%emt 0:04:20]} 19. Ba3 {[%emt 0:03:30]} Bxa3 {[%emt 0:00:25]} 20. Rxa3 {[%emt 0:00:02]} Nc4 {[%emt 0:02:49]} 21. Ra2 {[%emt 0:03:46]} Rg8 {[%emt 0:04:51]} 22. Qf4 {[%emt 0:05:46]} Qg5 {[%emt 0:00:12]} 23. Qxg5 {[%emt 0:00:05]} Rxg5 {[%emt 0:00:04]} 24. f4 {[%emt 0:00:59]} Rg8 {[%emt 0:00:27]} 25. Nb3 {[%emt 0:00:21]} Ke7 {[%emt 0:08:35]} 26. Nc5 {[%emt 0:01:48]} Rgc8 {[%emt 0:05:44]} 27. Kf2 {[%emt 0:03:38]} h4 {[%emt 0:09:30]} 28. Rb1 {[%emt 0:01:19]} Nxe3 {[%emt 0:00:53]} 29. Kxe3 {[%emt 0:00:05]} Rc6 {[%emt 0:00:20]} 30. Kd3 {[%emt 0:01:06]} Bc8 {[%emt 0:00:13]} 31. Kc2 {[%emt 0:01:20]} Kd8 {[%emt 0:01:22]} 32. Kb3 {[%emt 0:02:56]} Kc7 {[%emt 0:00:08]} 33. Kb4 {[%emt 0:00:10]} Kb6 {[%emt 0:01:40]} 34. Rf1 {[%emt 0:01:27]} Ra8 {[%emt 0:00:04]} 35. Ra5 {[%emt 0:00:05]} Bb7 {[%emt 0:00:12]} 36. Rf3 {[%emt 0:07:50]} Rg8 {[%emt 0:00:34]} 37. Ra2 {[%emt 0:00:07]} Rc7 {[%emt 0:00:36]} 38. Rff2 {[%emt 0:04:39]} Ra8 {[%emt 0:01:51]} 39. Ra5 {[%emt 0:00:05]} Rac8 {[%emt 0:00:33]} 40. Rfa2 {[%emt 0:02:04]} Rxc5 {[%emt 0:01:15]} 41. dxc5+ {[%emt 0:30:03]} Rxc5 {[%emt 0:30:09]} 42. g3 {[%emt 0:00:00]} Rc4+ {[%emt 0:00:00]} 43. Kb3 {[%emt 0:00:00]} d4 {[%emt 0:00:00]} 44. cxd4 {[%emt 0:00:00]} Rxd4 {[%emt 0:00:00]} 45. Kc3 {[%emt 0:00:00]} Rc4+ {[%emt 0:00:00]} 46. Kd3 {[%emt 0:00:00]} hxg3 {[%emt 0:00:00]} 47. hxg3 {[%emt 0:00:00]} Rc8 {[%emt 0:00:00]} 48. Ra1 {[%emt 0:00:00]} Rg8 {[%emt 0:00:00]} 49. Kd4 {[%emt 0:00:00]} Rxg3 {[%emt 0:00:00]} 50. R5a3 {[%emt 0:00:00]} Rg4 {[%emt 0:00:00]} 51. Rf1 {[%emt 0:00:00]} b4 {[%emt 0:00:00]} 52. Ra2 {[%emt 0:00:00]} a5 {[%emt 0:00:00]} 53. Rb2 {[%emt 0:00:00]} Bd5 {[%emt 0:00:00]} 54. Rh2 {[%emt 0:00:00]} Rg3 {[%emt 0:00:00]} 55. Rh8 {[%emt 0:00:00]} Rc3 {[%emt 0:00:00]} 56. Rb8+ {[%emt 0:00:00]} Bb7 {[%emt 0:00:00]} 57. Rf8 {[%emt 0:03:02]} Rc7 {[%emt 0:00:00]} 58. Rb1 {[%emt 0:01:18]} Rd7+ {[%emt 0:00:00]} 59. Ke3 {[%emt 0:01:27]} Kb5 {[%emt 0:00:00] Kd4 [%emt 00:01:46]} 0-1

[Event "105th British-ch 2018"]
[Site "Hull"]
[Date "2018.08.02"]
[Round "6"]
[White "Kolbus, Dietmar"]
[Black "Moore, Graham J"]
[Result "1/2-1/2"]
[ECO "A20"]
[WhiteElo "2303"]
[BlackElo "2218"]
[Annotator "RC"]
[PlyCount "157"]
[EventDate "2018.07.28"]
[EventType "swiss"]
[EventCountry "GBR"]
[SourceTitle "playchess.com"]
[Source "ChessBase"]
[SourceQuality "1"]
[TimeControl "40/5400+30:1800+30"]

1. c4 {[%emt 0:00:00]} e5 {[%emt 0:00:00]} 2. g3 {[%emt 0:00:00]} Nf6 {[%emt 0:00:00]} 3. Bg2 {[%emt 0:00:00]} c6 {[%emt 0:00:52]} 4. Nf3 {[%emt 0:00:07]} e4 {[%emt 0:00:34]} 5. Nd4 {[%emt 0:00:04]} Qb6 {[%emt 0:00:31]} 6. Nc2 {[%emt 0:04:23]} d5 {[%emt 0:02:33]} 7. cxd5 {[%emt 0:00:13]} cxd5 {[%emt 0:00:12]} 8. O-O {[%emt 0:00:15]} Nc6 {[%emt 0:04:39]} 9. d3 {[%emt 0:01:39]} Bf5 {[%emt 0:05:35]} 10. Nc3 {[%emt 0:00:14]} O-O-O {[%emt 0:03:50]} 11. d4 {[%emt 0:08:20]} Be7 {[%emt 0:04:04]} 12. a3 {[%emt 0:00:58]} h5 {[%emt 0:02:37]} 13. Na4 {[%emt 0:10:38]} Qc7 {[%emt 0:07:51]} 14. Bf4 {[%emt 0:03:22]} Bd6 {[%emt 0:00:38]} 15. Bxd6 {[%emt 0:00:41]} Qxd6 {[%emt 0:00:06]} 16. Ne3 {[%emt 0:01:00]} Bg4 {[%emt 0:08:14]} 17. h3 {[%emt 0:15:10]} h4 {[%emt 0:18:10]} 18. Nxg4 {[%emt 0:05:44]} Nxg4 {[%emt 0:01:36]} 19. e3 {[%emt 0:00:24]} Nf6 {[%emt 0:00:22]} 20. g4 {[%emt 0:00:27]} Kb8 {[%emt 0:03:36]} 21. Nc3 {[%emt 0:03:53]} Na5 {[%emt 0:04:06]} 22. Qe2 {[%emt 0:01:36]} Rc8 {[%emt 0:01:46]} 23. Rac1 {[%emt 0:00:32]} Qe6 {[%emt 0:05:10]} 24. Nb1 {[%emt 0:03:11]} Nc4 {[%emt 0:01:53]} 25. Rc3 {[%emt 0:04:50]} Ne8 {[%emt 0:03:59]} 26. b3 {[%emt 0:01:02]} Ncd6 {[%emt 0:01:23]} 27. Rxc8+ {[%emt 0:00:56]} Qxc8 {[%emt 0:00:53]} 28. Qd2 {[%emt 0:00:26]} f5 {[%emt 0:01:09]} 29. gxf5 {[%emt 0:04:56]} Qxf5 {[%emt 0:00:27]} 30. Nc3 {[%emt 0:01:48]} Nf6 {[%emt 0:01:01]} 31. Kh2 {[%emt 0:03:34]} Rh6 {[%emt 0:00:42]} 32. f3 {[%emt 0:05:05]} Qg5 {[%emt 0:00:46]} 33. Qf2 {[%emt 0:00:47]} Nh5 {[%emt 0:03:59]} 34. fxe4 {[%emt 0:02:34]} Rf6 {[%emt 0:00:07]} 35. Qe1 {[%emt 0:00:16]} dxe4 {[%emt 0:02:11]} 36. Nxe4 {[%emt 0:07:51]} Nxe4 {[%emt 0:01:04]} 37. Bxe4 {[%emt 0:00:03]} Ng3 {[%emt 0:02:09]} 38. Rxf6 {[%emt 0:00:39]} Qxf6 {[%emt 0:00:18]} 39. Bg2 {[%emt 0:02:54]} Qd6 {[%emt 0:00:17]} 40. a4 {[%emt 0:02:21]} Nf5+ {[%emt 0:04:05]} 41. Kg1 {[%emt 0:33:30]} Qg3 {[%emt 0:30:06]} 42. Qf2 {[%emt 0:00:00]} Qxe3 {[%emt 0:00:00]} 43. Qxe3 {[%emt 0:00:00]} Nxe3 {[%emt 0:00:00]} 44. Be4 {[%emt 0:00:00]} Nd1 {[%emt 0:00:00]} 45. Bf3 {[%emt 0:00:00]} Ne3 {[%emt 0:00:00]} 46. Be4 {[%emt 0:00:00]} Nd1 {[%emt 0:00:00]} 47. Kf1 {[%emt 0:00:00]} Nc3 {[%emt 0:00:00]} 48. Bf3 {[%emt 0:00:00]} b5 {[%emt 0:00:00]} 49. a5 {[%emt 0:00:00]} b4 {[%emt 0:00:00]} 50. Kf2 {[%emt 0:00:00]} Nb5 {[%emt 0:00:00]} 51. Ke3 {[%emt 0:00:00]} Kc7 {[%emt 0:00:00]} 52. Be2 {[%emt 0:00:00]} Nd6 {[%emt 0:00:00]} 53. Bf3 {[%emt 0:00:00]} Kd7 {[%emt 0:00:00]} 54. Kf4 {[%emt 0:00:00]} Ke6 {[%emt 0:00:00]} 55. Kg5 {[%emt 0:00:00]} Nb5 {[%emt 0:00:00]} 56. d5+ {[%emt 0:00:00]} Ke5 {[%emt 0:00:00]} 57. Kxh4 {[%emt 0:00:20]} Kf4 {[%emt 0:00:00]} 58. Be2 {[%emt 0:01:29]} Nd4 {[%emt 0:00:00]} 59. Bg4 {[%emt 0:05:08]} Nxb3 {[%emt 0:00:00]} 60. d6 {[%emt 0:00:09]} Nxa5 {[%emt 0:00:00]} 61. d7 {[%emt 0:00:10]} Nc6 {[%emt 0:00:00]} 62. Bd1 {[%emt 0:00:37]} Kf5 {[%emt 0:00:00]} 63. Ba4 {[%emt 0:00:14]} Nd8 {[%emt 0:00:00]} 64. Kh5 {[%emt 0:00:58]} Kf6 {[%emt 0:01:05]} 65. h4 {[%emt 0:00:49]} a5 {[%emt 0:03:29]} 66. Kg4 {[%emt 0:00:30]} Ke7 {[%emt 0:00:21]} 67. Kf5 {[%emt 0:00:20]} Ne6 {[%emt 0:01:27]} 68. Kg6 {[%emt 0:00:28]} Nd4 {[%emt 0:02:09]} 69. h5 {[%emt 0:00:25]} b3 {[%emt 0:03:11]} 70. Bxb3 {[%emt 0:00:29]} Nxb3 {[%emt 0:00:05]} 71. Kxg7 {[%emt 0:00:08]} Nd4 {[%emt 0:00:28]} 72. d8=Q+ {[%emt 0:01:48]} Kxd8 {[%emt 0:00:05]} 73. Kf6 {[%emt 0:00:03]} Nf5 {[%emt 0:05:36]} 74. Kxf5 {[%emt 0:00:19]} Ke8 {[%emt 0:00:06]} 75. Ke4 {[%emt 0:01:00]} Kf8 {[%emt 0:00:12]} 76. Kd3 {[%emt 0:00:07]} Kg7 {[%emt 0:00:05]} 77. Kc4 {[%emt 0:00:04]} Kh6 {[%emt 0:00:04]} 78. Kb5 {[%emt 0:00:03]} Kxh5 {[%emt 0:00:03]} 79. Kxa5 {[%emt 0:00:08]} 1/2-1/2